Cogmind - Beta 12 @@@ ROGUE MODE // 2023.10.09 @ 15:12:25 Player: Figgis Result: Destroyed self via exploding Fusion Modulator Performance ------------- Evolutions (0) 0 Regions Visited (1) 200 Robots Destroyed (19) 95 Value Destroyed (580) 580 Prototype IDs (0) 0 Alien Tech Used (0) 0 Bonus (0) 0 TOTAL SCORE: 875 Bonus ------- None Cogmind --------- Core Integrity 0/250 Matter 236/300 Energy 250/250 System Corruption 0% Temperature Cool (51) Movement Walking (190) Ox1 Location -10/Materials Parts ------- > --- POWER (1) -------- Ion Engine > --- PROPULSION (2) --- Aluminum Leg Aluminum Leg > --- UTILITY (2) ------ Large Storage Unit > --- WEAPON (2) ------- Light Cannon Light Cannon > --- INVENTORY (15) --- Light Ion Engine Aluminum Leg Aluminum Leg Aluminum Leg Aluminum Leg Aluminum Leg Aluminum Leg Aluminum Leg Cooling System Weight Redist. System Light Cannon Light Cannon Light Cannon Light Cannon Peak State ------------ > --- POWER ------------ Ion Engine > --- PROPULSION ------- Aluminum Leg Aluminum Leg > --- UTILITY ---------- Large Storage Unit > --- WEAPON ----------- Light Assault Rifle Light Assault Rifle > --- INVENTORY -------- Light Ion Engine Aluminum Leg Aluminum Leg Aluminum Leg Aluminum Leg Aluminum Leg Aluminum Leg Weight Redist. System EM Pulse Gun Small Laser [Rating: 7] Favorites ----------- Power Ion Engine Engine Ion Engine Propulsion Aluminum Leg Leg Aluminum Leg Utility Large Storage Unit Storage Large Storage Unit Weapon Light Assault Rifle Energy Gun EM Pulse Gun Ballistic Gun Light Assault Rifle Ballistic Cannon Light Cannon Build | -11 -10 ------- Run | Jun Mat Slots Evolved . | . . Power . | . . Propulsion . | . . Utility . | . . Weapon . | . . Parts Attached 15 | 6 9 Power 2 | 1 1 Engine 2 | 1 1 Core . | . . Reactor . | . . Propulsion 4 | 2 2 Treads . | . . Leg 4 | 2 2 Wheel . | . . Hover . | . . Flight . | . . Utility 3 | 1 2 Device . | . . Storage 3 | 1 2 Processor . | . . Hackware . | . . Protection . | . . Artifact . | . . Weapon 6 | 2 4 Energy Gun 2 | 1 1 Energy Cannon . | . . Ballistic Gun 2 | 1 1 Ballistic Cannon 2 | . 2 Launcher . | . . Special Weapon . | . . Impact Weapon . | . . Slashing Weapon . | . . Piercing Weapon . | . . Special Melee Weapon . | . . Unidentified Prototypes . | . . Parts Lost 4 | . 4 Power 1 | . 1 Propulsion 2 | . 2 Utility . | . . Weapon 1 | . 1 Highest Loss Streak 2 | . 2 To Critical Strikes . | . . Average Slot Usage (%) 83 | . 83 Engine 14 | . 14 Leg 27 | . 27 Storage 14 | . 14 Energy Gun 4 | . 4 Ballistic Gun 15 | . 15 Ballistic Cannon 7 | . 7 Naked Turns . | . . Heaviest Build 31 | 13 31 Greatest Support 20 | 20 20 Greatest Overweight (x) 3 | . 3 Average Overweight (x) . | . . Largest Inventory Capacity 15 | 8 15 Average Capacity 13 | 7 14 Most Carried 15 | 5 15 Average Carried 6 | 2 7 Final Capacity 15 | 8 15 Final Carried 14 | 2 14 Class Distribution -------------------- 100% | Mutant Dominant Class ---------------- Mutant | -10/Materials Resources | -11 -10 ----------- Run | Jun Mat Matter Collected 495 | 232 263 Remotely . | . . Salvage Created 686 | . 686 Parts 44 | . 44 Haulers Intercepted 1 | . 1 Recyclers Shooed . | . . Parts Field Recycled . | . . Retrieved Matter . | . . Parts Self-Destructed . | . . Prevented . | . . Kills | -11 -10 ------- Run | Jun Mat Combat Hostiles Destroyed 14 | . 14 Guns 11 | . 11 Cannons 3 | . 3 Classes Destroyed 5 | . 5 Builder 1 | . 1 Hauler 1 | . 1 Operator 1 | . 1 Watcher 2 | . 2 Grunt 14 | . 14 Best Kill Streak 5 | . 5 Combat Bots Only 5 | . 5 Max Kills in Single Turn 1 | . 1 Gunslinging . | . . Exploded . | . . Melee . | . . Uniques/NPCs Destroyed . | . . Combat | -11 -10 -------- Run | Jun Mat Damage Taken 847 | . 847 Core 266 | . 266 Absorbed by Shields . | . . Core Remaining (%) 100 | 100 . Volleys Fired 68 | . 68 Largest 2 | . 2 Hottest 70 | . 70 Shots Fired 136 | . 136 Gun 102 | . 102 Cannon 34 | . 34 Launcher . | . . Special . | . . Kinetic 117 | . 117 Thermal . | . . Explosive . | . . Electromagnetic 19 | . 19 Robot Hit Streak 9 | . 9 Robot Miss Streak 7 | . 7 Penetration Max . | . . Secondary Targets 2 | . 2 Max Gunslinging Chain 1 | . 1 Shots Hit Robots 84 | . 84 Core Hits 39 | . 39 Critical Kills . | . . Critical Parts Destroyed 1 | . 1 Critical Strikes 3 | . 3 Destroy 1 | . 1 Blast 1 | . 1 Corrupt 1 | . 1 Melee Attacks . | . . Impact . | . . Slashing . | . . Piercing . | . . Sneak Attacks . | . . Combat Hostiles . | . . Follow-up Attacks . | . . Damage Inflicted 1016 | . 1016 Guns 655 | . 655 Cannons 286 | . 286 Explosions 75 | . 75 Melee . | . . Ramming . | . . Kinetic 762 | . 762 Thermal 75 | . 75 Explosive . | . . Electromagnetic 179 | . 179 Impact . | . . Slashing . | . . Piercing . | . . Highest Corruption . | . . Average Corruption . | . . Corruption Purged . | . . Corruption Blocked . | . . Overload Shots . | . . Overflow Damage . | . . Projectiles . | . . Explosions . | . . Melee . | . . Knockbacks 4 | . 4 Impact . | . . Kinetic 4 | . 4 Secondary . | . . Self-Inflicted Damage 74 | . 74 Shots 1 | . 1 Rammed . | . . Targets Rammed . | . . Kicked . | . . Crushed . | . . Highest Temperature 142 | . 142 Average Temperature 33 | . 33 Received Heat Transfer 438 | . 438 Siege Activations . | . . Robots Corrupted . | . . Combat Hostiles . | . . Parts Fried 1 | . 1 Impact Corruptions . | . . Robots Melted . | . . Combat Hostiles . | . . Parts Melted . | . . Heat Transferred 50 | . 50 Parts Sabotaged . | . . Parts Stolen . | . . Parts Stripped . | . . Power Chain Reactions . | . . Missiles Intercepted . | . . Alert | -11 -10 ------- Run | Jun Mat Peak Influence 193 | . 193 Initial . | . . Average 82 | . 86 Maximum Alert Level . | . . Low Security (%) 100 | 100 100 Level 1 . | . . Level 2 . | . . Level 3 . | . . Level 4 . | . . Level 5 . | . . High Security . | . . Max Security . | . . Squads Dispatched 3 | . 3 Investigation 1 | . 1 Extermination . | . . Reinforcement 2 | . 2 Assault . | . . Garrison . | . . Intercept . | . . Searches Triggered . | . . Construction Impeded . | . . Haulers Reinforced . | . . Active Scanning Responses . | . . Cargo Convoy Interrupts . | . . Stealth | -11 -10 --------- Run | Jun Mat Distress Signals 2 | . 2 Communications Jammed . | . . Distress Signals . | . . Times Spotted 22 | . 22 Peak Tracking Total 4 | . 4 Tactical Retreats 1 | . 1 Traps | -11 -10 ------- Run | Jun Mat Traps Triggered 1 | . 1 Indirectly . | . . Trap Hack Attempts . | . . Triggered . | . . Disarmed . | . . Reprogrammed . | . . Reused . | . . Traps Extracted . | . . Installed . | . . Triggered . | . . Machines | -11 -10 ---------- Run | Jun Mat Machines Disabled 1 | . 1 Max in Single Turn 1 | . 1 Machines Repaired . | . . Machines Sabotaged . | . . Overloaded Fab Kills . | . . Hacking | -11 -10 --------- Run | Jun Mat Machines Accessed 4 | . 4 Terminals 4 | . 4 Fabricators . | . . Repair Stations . | . . Recycling Units . | . . Scanalyzers . | . . Garrison Access . | . . Total Hacks 13 | . 13 Successful 2 | . 2 Failed 11 | . 11 Catastrophic 1 | . 1 Database Lockouts . | . . Manual 13 | . 13 Terminals 13 | . 13 Fabricators . | . . Repair Stations . | . . Recycling Units . | . . Scanalyzers . | . . Garrison Access . | . . Terminal Hacks 2 | . 2 Robot Analysis 1 | . 1 Branch Access Points 1 | . 1 Fabricator Hacks . | . . Repair Station Hacks . | . . Recycling Unit Hacks . | . . Scanalyzer . | . . Garrison Access Hacks . | . . Unauthorized Hacks . | . . Terminals . | . . Fabricators . | . . Repair Stations . | . . Recycling Units . | . . Scanalyzers . | . . Garrison Access . | . . Data Cores Recovered 1 | . 1 Used . | . . Hacking Detections 4 | . 4 Full Trace Events . | . . Feedback Events . | . . Feedback Blocked . | . . Robot Schematics Acquired . | . . Robots Built . | . . Authchips . | . . Time . | . . Total Robot Build Rating . | . . Part Schematics Acquired . | . . Parts Built . | . . Authchips . | . . Time . | . . Total Part Build Rating . | . . Parts Repaired . | . . Time . | . . Parts Recycled . | . . Recycled Matter . | . . Retrieved Matter . | . . Retrieved Components . | . . Parts Scanalyzed . | . . Part Schematics Acquired . | . . Parts Damaged . | . . Bothacking | -11 -10 ------------ Run | Jun Mat Used RIF Installer . | . . Robots Hacked . | . . Non-combat . | . . Combat . | . . Robot Hacks Applied . | . . Relay Couplers Released . | . . Fabnet Peak Effective % . | . . Robots Rewired . | . . Allies Hacked . | . . Hacks Repelled . | . . Allies | -11 -10 -------- Run | Jun Mat Total Allies . | . . Largest Group . | . . Highest-Rated Group . | . . Highest-Rated Ally . | . . Total Orders . | . . Ally Attacks . | . . Total Damage . | . . Kills . | . . Allies Corrupted . | . . Allies Melted . | . . Intel | -11 -10 ------- Run | Jun Mat Robot Analysis Total 1 | . 1 Derelict Logs Recovered . | . . Drone Launches . | . . Drone Recoveries . | . . Exploration | -11 -10 ------------- Run | Jun Mat Turns Passed 1033 | 48 985 Spaces Moved 474 | 38 436 Core 15 | 15 . Treads . | . . Legs 459 | 23 436 Wheels . | . . Hover . | . . Flight . | . . Fastest Speed 50 | 50 120 Average Speed 167 | 92 173 Slowest Speed 330 | 120 330 Overloaded Moves . | . . Propulsion Burnouts . | . . Robots Hopped . | . . Cave-ins Triggered . | . . Exploration Rate (%) 41 | 3 79 Regions Visited 1 Branch Regions . Pre-discovered Areas . | . . Known Exits Taken . | . . Unknown Exits Taken 1 | 1 . Scrap Searched . | . . Spaces Dug . | . . Terrain Destroyed 8 | . 8 Melee . | . . Projectile . | . . AOE 8 | . 8 Terrain Rammed . | . . Walls Destroyed . | . . Machines Disabled . | . . Actions | -11 -10 --------- Run | Jun Mat Total 595 | 50 545 Wait 6 | . 6 Move 473 | 37 436 Hop . | . . Pick Up 27 | 7 20 Fast Attach 3 | 1 2 Attach 9 | 5 4 Detach . | . . Swap 3 | . 3 Drop 6 | . 6 Fire 68 | . 68 Melee . | . . Ram . | . . Kick . | . . Crush . | . . Escape Stasis . | . . Rewire . | . . Trap . | . . Miscellaneous . | . . Route ------- -11/Junkyard -10/Materials (discovered 5 exits: [*Mat x3] / *Min x2) History --------- Turn | Location | Event 23 | -11/Junkyard | Discovered new exit (range 15) 49 | -11/Junkyard | Entered Materials 117 | -10/Materials | Discovered new exit (range 14) 242 | -10/Materials | Discovered new exit (range 9) 294 | -10/Materials | Identified exit to Mines 308 | -10/Materials | Build established: Mutant 510 | -10/Materials | Discovered new exit (range 13) 637 | -10/Materials | Core integrity fell below 50% 790 | -10/Materials | Discovered new exit (range 3) 1034 | -10/Materials | Destroyed self via exploding Fusion Modulator Last Messages --------------- W-series watchers are equipped with a wide variety of sensors to excel at surveillance. However, their heavy reliance on highly-exposed advanced electronic systems means they are extremely susceptible to electromagnetic attacks. On detecting intruders, a W-16 Scout will alert all nearby combat units and continue to provide position updates as long as the hostile is visible. 00968_ G-34 Mercenary Aluminum Leg blasted off. 00968_ G-34 Mercenary destroyed. 00970_ Aluminum Leg destroyed. 00971_ G-34 Mercenary knocked back. 00987_ G-34 Mercenary destroyed. 00993_ Acquired Aluminum Leg. 01001_ Acquired 42 matter. 01003_ Acquired 5 matter. 01017_ W-16 Scout sends out distress signal. 01021_ W-16 Scout destroyed. 01027_ G-34 Mercenary knocked back. 01030_ G-34 Mercenary destroyed. 01034_ Fusion Modulator explodes. 01034_ A-02 Transporter destroyed. Map ----- +----------------------------------------------------+ | # ## #?????????????????? # | | # ## #?????????????????? + | | # ## #?????????????????? # | | ## #??????????????????############### # | | ## #????????????????????????????###### ## | | ## #????????????????????????????# # ## | | # ## #????????????????????????????# + ## | | # ## #????????????????????????????# # ## | | # ## ?????????????????>???????????# + # | | + ###+####???????????????????????????# # # | | # #??????????????? ???????????# # !#* | | # +??????????????? ?????????# + =%= | | # #??????????????? #?????????##########! | | ##### #####???????????????k ##???????????????#### | | ????# #?????????????????? ???????????????# | | ????# #?????????????????? r ???? ?????????# "" | | ????# #?????#+#?????????? """ ??????????# "" | | ????# #?????#^#?????????? """ o#???????????# | | ????# #???### ##########? """ #???????????#| | | ????# ##### % # #? #?????# ###### | | ????# %[#%!""" ## #?????# | | ????# T + """ ## """ #?????# ###### | | ##### ##### #% """ # """ #??????????????# | | # #?######## % # """ #??????????????# | | """ # #? #?# ||| + [[#??????????##### | | """ # # """ #?# ||! #@ ![%#??????????# | | """ # # """ #?# ||! # [%* #?????# """ | | """ + + """ #?# #; ####???????# """ | | # # #?# ;; ##########?# """ | | +#### # #?# ## # #?# """ | | #?######?########## # #?# """ | | #????############## # #???""" | | ##+######## # + ] #???""" | | # # """ """ # # [[[ #?# | | # + """ """ +* < # [] #?##### | | # # """ """ #% #### ##+########### | | # #[ +| %#??###### | | # ###############+##???????# ## | | # !!#?????????????? ????????# #? | | # !! #?????????????? ?? / #? | | ### !! #?????????????? ##############+#? | | ??###########?????????????? ??????????????? | | ??????????????????????????? ???????????? | | ???????????????????????????? ??????????#/ | | ???????????????????????????? ?????????# | | ????????????????????????????####?????????######### | | | | | | | | | +----------------------------------------------------+ Best States ------------- Heat Dissipation 25 Energy Generation 10 Energy Capacity 250 Matter Stores 300 Matter Capacity 300 Sight Range 16 Terrain Scan Density 10 Evasion (%) 55 Item Schematics ----------------- None Robot Schematics ------------------ None Fabricated ------------ Nothing Alien Tech Used ----------------- None Achievements -------------- None Challenges ------------ None Game ------ Seed NavigationShockMinigun Manual? 0 Play Time 00:08:22 Cumulative 35.2 hours Start 2023.10.09 @ 15:05:56 End 2023.10.09 @ 15:12:25 Sessions 1 Manual Loads 0 Difficulty Rogue Special Mode None Game No. 68 Rogue 65 Adventurer 3 Explorer 0 Win Type - Total 0 Types 0/0/0/0/0/0/0/0/0 Lore% 22 Gallery% 36 Achievement% 26 Wizard Run 0 Options --------- ASCII 0 Keyboard 0 Movement Mouse Keybinds 0 Fullscreen 2 Font 18/SmallcapsGlow Map View 76x50 Tactical HUD 1 Map Filters NONE Filters NONE Steam 1 RUN: 160500d4-7af2-480b-bc41-3b7d1911cb50